[Event "Titled Tuesday Blitz May 10 Early 2022"]
[White "Friedel, Tom"]
[Black "Ambartsumova, Karina"]
[WhiteFideId "2002108"]
[BlackFideId "4166299"]
[WhiteElo "2327"]
[BlackElo "2262"]
[Result "0-1"]
[Round "03"]
[TimeControl "180+1"]
[Date "2022.05.11"]
[WhiteClock "0:00:04"]
[BlackClock "0:00:11"]

1. e4 {[%clk 0:02:59]}  e5 {[%clk 0:02:59]} 2. Nf3 {[%clk 0:03:00]}  Nc6 {[%clk 0:02:59]} 3. Bc4 {[%clk 0:03:00]}  Bc5 {[%clk 0:02:57]} 4. c3 {[%clk 0:03:00]}  Nf6 {[%clk 0:02:57]} 5. d3 {[%clk 0:03:00]}  O-O {[%clk 0:02:57]} 6. b4 {[%clk 0:03:00]}  Be7 {[%clk 0:02:49]} 7. O-O {[%clk 0:02:57]}  d5 {[%clk 0:02:41]} 8. exd5 {[%clk 0:02:57]}  Nxd5 {[%clk 0:02:42]} 9. Qb3 {[%clk 0:02:50]}  Nb6 {[%clk 0:02:38]} 10. Bb5 {[%clk 0:02:48]}  Be6 {[%clk 0:02:31]} 11. Qc2 {[%clk 0:02:42]}  f6 {[%clk 0:02:26]} 12. Nbd2 {[%clk 0:02:35]}  a6 {[%clk 0:02:20]} 13. Bxc6 {[%clk 0:02:35]}  bxc6 {[%clk 0:02:21]} 14. Ne4 {[%clk 0:02:35]}  Bg4 {[%clk 0:02:10]} 15. Ne1 {[%clk 0:01:51]}  f5 {[%clk 0:01:59]} 16. Nc5 {[%clk 0:01:50]}  Qd6 {[%clk 0:01:32]} 17. f3 {[%clk 0:01:41]}  Bh5 {[%clk 0:01:32]} 18. Be3 {[%clk 0:01:42]}  Nd5 {[%clk 0:01:28]} 19. Bf2 {[%clk 0:01:36]}  Nf4 {[%clk 0:01:10]} 20. d4 {[%clk 0:01:12]}  Rae8 {[%clk 0:00:28]} 21. dxe5 {[%clk 0:00:57]}  Qxe5 {[%clk 0:00:28]} 22. Nd7 {[%clk 0:00:53]}  Qe6 {[%clk 0:00:23]} 23. Nxf8 {[%clk 0:00:53]}  Bxf8 {[%clk 0:00:24]} 24. Nd3 {[%clk 0:00:42]}  Ne2+ {[%clk 0:00:20]} 25. Kh1 {[%clk 0:00:42]}  Bd6 {[%clk 0:00:21]} 26. Rfe1 {[%clk 0:00:33]}  Bxf3 {[%clk 0:00:17]} 27. gxf3 {[%clk 0:00:28]}  Qd5 {[%clk 0:00:16]} 28. Kg2 {[%clk 0:00:23]}  Qe6 {[%clk 0:00:16]} 29. Rxe2 {[%clk 0:00:15]}  Qxe2 {[%clk 0:00:16]} 30. Qxe2 {[%clk 0:00:14]}  Rxe2 {[%clk 0:00:17]} 31. Nc5 {[%clk 0:00:11]}  Rc2 {[%clk 0:00:15]} 32. Nxa6 {[%clk 0:00:10]}  Rxc3 {[%clk 0:00:14]} 33. Nc5 {[%clk 0:00:10]}  Ra3 {[%clk 0:00:13]} 34. Bg3 {[%clk 0:00:06]}  f4 {[%clk 0:00:13]} 35. Bf2 {[%clk 0:00:06]}  Kf7 {[%clk 0:00:13]} 36. Bh4 {[%clk 0:00:02]}  Be5 {[%clk 0:00:13]} 37. Bf2 {[%clk 0:00:02]}  Bxa1 {[%clk 0:00:13]} 38. Ne4 {[%clk 0:00:03]}  Rxa2 {[%clk 0:00:13]} 39. Ng5+ {[%clk 0:00:03]}  Kg6 {[%clk 0:00:13]} 40. Ne4 {[%clk 0:00:04]}  Bd4 {[%clk 0:00:13]} 41. Kf1 {[%clk 0:00:03]}  Bxf2 {[%clk 0:00:14]} 42. Nxf2 {[%clk 0:00:04]}  Rb2 {[%clk 0:00:14]} 43. Nd3 {[%clk 0:00:04]}  Rb3 {[%clk 0:00:13]} 44. Nxf4+ {[%clk 0:00:03]}  Kf5 {[%clk 0:00:14]} 45. Ne2 {[%clk 0:00:03]}  Rxb4 {[%clk 0:00:13]} 46. Kf2 {[%clk 0:00:04]}  h5 {[%clk 0:00:12]} 47. Ng3+ {[%clk 0:00:04]}  Kg6 {[%clk 0:00:12]} 48. Ne4 {[%clk 0:00:05]}  Rd4 {[%clk 0:00:12]} 49. Ke3 {[%clk 0:00:06]}  Rd5 {[%clk 0:00:12]} 50. Kf4 {[%clk 0:00:05]}  Kf7 {[%clk 0:00:13]} 51. Nc3 {[%clk 0:00:05]}  Rd4+ {[%clk 0:00:12]} 52. Ke5 {[%clk 0:00:04]}  Rd2 {[%clk 0:00:12]} 53. Ne4 {[%clk 0:00:04]}  Rxh2 {[%clk 0:00:13]} 54. Ng5+ {[%clk 0:00:05]}  Kg6 {[%clk 0:00:13]} 55. f4 {[%clk 0:00:06]}  h4 {[%clk 0:00:13]} 56. Ne6 {[%clk 0:00:05]}  h3 {[%clk 0:00:12]} 57. f5+ {[%clk 0:00:06]}  Kh6 {[%clk 0:00:12]} 58. Nf4 {[%clk 0:00:04]}  Rh1 {[%clk 0:00:12]} 59. Ke4 {[%clk 0:00:03]}  h2 {[%clk 0:00:12]} 60. Kf3 {[%clk 0:00:04]}  Rf1+ {[%clk 0:00:11]} 0-1


[Site "https://www.chess.com"]

[Event "Titled Tuesday Blitz May 10 Early 2022"]
[White "Gharibyan, Mamikon"]
[Black "Bortnyk, Olexandr"]
[WhiteFideId "13308300"]
[BlackFideId "14120828"]
[WhiteElo "2254"]
[BlackElo "2723"]
[Result "1-0"]
[Round "03"]
[TimeControl "180+1"]
[Date "2022.05.10"]
[WhiteClock "0:00:17"]
[BlackClock "0:00:04"]

1. c4 {[%clk 0:03:00]}  d6 {[%clk 0:02:58]} 2. Nc3 {[%clk 0:02:59]}  Nf6 {[%clk 0:02:53]} 3. d4 {[%clk 0:02:58]}  g6 {[%clk 0:02:48]} 4. e4 {[%clk 0:02:58]}  Bg7 {[%clk 0:02:48]} 5. Nf3 {[%clk 0:02:58]}  c6 {[%clk 0:02:49]} 6. Be2 {[%clk 0:02:57]}  Nbd7 {[%clk 0:02:49]} 7. O-O {[%clk 0:02:57]}  e5 {[%clk 0:02:50]} 8. Re1 {[%clk 0:02:54]}  O-O {[%clk 0:02:49]} 9. Bf1 {[%clk 0:02:54]}  Qe7 {[%clk 0:02:46]} 10. d5 {[%clk 0:02:37]}  c5 {[%clk 0:02:43]} 11. g3 {[%clk 0:02:33]}  Nh5 {[%clk 0:02:40]} 12. Nh4 {[%clk 0:02:31]}  Bf6 {[%clk 0:02:36]} 13. Nf3 {[%clk 0:02:25]}  Bg7 {[%clk 0:02:24]} 14. Nh4 {[%clk 0:02:24]}  Bf6 {[%clk 0:02:19]} 15. Nf3 {[%clk 0:02:23]}  a6 {[%clk 0:02:19]} 16. a3 {[%clk 0:02:22]}  Bg7 {[%clk 0:02:16]} 17. Nh4 {[%clk 0:02:20]}  Ndf6 {[%clk 0:02:09]} 18. b4 {[%clk 0:02:18]}  b6 {[%clk 0:02:05]} 19. bxc5 {[%clk 0:02:16]}  bxc5 {[%clk 0:02:06]} 20. Rb1 {[%clk 0:02:16]}  h6 {[%clk 0:01:59]} 21. Be2 {[%clk 0:02:09]}  Bh3 {[%clk 0:01:53]} 22. Be3 {[%clk 0:02:02]}  Qd7 {[%clk 0:01:50]} 23. Rb6 {[%clk 0:01:54]}  Ng4 {[%clk 0:01:25]} 24. Bd2 {[%clk 0:01:31]}  Bf6 {[%clk 0:01:05]} 25. Ng2 {[%clk 0:00:45]}  Bd8 {[%clk 0:01:04]} 26. Rb2 {[%clk 0:00:37]}  f5 {[%clk 0:01:03]} 27. f3 {[%clk 0:00:37]}  f4 {[%clk 0:00:20]} 28. fxg4 {[%clk 0:00:33]}  fxg3 {[%clk 0:00:20]} 29. gxh5 {[%clk 0:00:26]}  Bxg2 {[%clk 0:00:10]} 30. Bg4 {[%clk 0:00:24]}  Qe7 {[%clk 0:00:07]} 31. hxg3 {[%clk 0:00:21]}  gxh5 {[%clk 0:00:04]} 32. Be6+ {[%clk 0:00:20]}  Kh7 {[%clk 0:00:04]} 33. Kxg2 {[%clk 0:00:20]}  Qg7 {[%clk 0:00:02]} 34. Bf5+ {[%clk 0:00:20]}  Kg8 {[%clk 0:00:02]} 35. Qxh5 {[%clk 0:00:20]}  Rf6 {[%clk 0:00:02]} 36. Rh1 {[%clk 0:00:18]}  Ba5 {[%clk 0:00:03]} 37. Bxh6 {[%clk 0:00:18]}  Qf7 {[%clk 0:00:02]} 38. Bg5 {[%clk 0:00:16]}  Qxh5 {[%clk 0:00:02]} 39. Rxh5 {[%clk 0:00:17]}  Rxf5 {[%clk 0:00:02]} 40. exf5 {[%clk 0:00:17]}  Bxc3 {[%clk 0:00:03]} 41. Rb7 {[%clk 0:00:17]}  e4 {[%clk 0:00:04]} 42. f6 {[%clk 0:00:17]} 1-0


[Site "https://www.chess.com"]

[Event "Titled Tuesday Blitz May 10 Early 2022"]
[White "Gheorghiu, Calin"]
[Black "De Souza, Cristiano Gomes"]
[WhiteFideId "1200305"]
[BlackFideId "2151758"]
[WhiteElo "2168"]
[BlackElo "2068"]
[Result "1-0"]
[Round "03"]
[TimeControl "180+1"]
[Date "2022.05.11"]
[WhiteClock "0:01:39"]
[BlackClock "0:01:19"]

1. d4 {[%clk 0:02:58]}  Nf6 {[%clk 0:02:59]} 2. Bf4 {[%clk 0:02:58]}  g6 {[%clk 0:02:58]} 3. Nc3 {[%clk 0:02:57]}  Bg7 {[%clk 0:02:56]} 4. e4 {[%clk 0:02:57]}  d6 {[%clk 0:02:57]} 5. Qd2 {[%clk 0:02:57]}  h6 {[%clk 0:02:56]} 6. O-O-O {[%clk 0:02:57]}  g5 {[%clk 0:02:56]} 7. Be3 {[%clk 0:02:56]}  Ng4 {[%clk 0:02:56]} 8. h4 {[%clk 0:02:56]}  Nxe3 {[%clk 0:02:55]} 9. Qxe3 {[%clk 0:02:57]}  e6 {[%clk 0:02:50]} 10. hxg5 {[%clk 0:02:55]}  Qxg5 {[%clk 0:02:46]} 11. f4 {[%clk 0:02:55]}  Qe7 {[%clk 0:02:44]} 12. g4 {[%clk 0:02:55]}  a6 {[%clk 0:02:42]} 13. Nf3 {[%clk 0:02:55]}  Nd7 {[%clk 0:02:41]} 14. g5 {[%clk 0:02:53]}  c5 {[%clk 0:02:37]} 15. d5 {[%clk 0:02:45]}  b5 {[%clk 0:02:31]} 16. Bh3 {[%clk 0:02:32]}  Nb6 {[%clk 0:02:27]} 17. e5 {[%clk 0:02:28]}  exd5 {[%clk 0:02:23]} 18. Nxd5 {[%clk 0:02:26]}  Nxd5 {[%clk 0:02:23]} 19. Rxd5 {[%clk 0:02:27]}  Bxh3 {[%clk 0:02:07]} 20. Rxh3 {[%clk 0:02:26]}  Rd8 {[%clk 0:02:05]} 21. Qe4 {[%clk 0:02:00]}  dxe5 {[%clk 0:02:04]} 22. Rxd8+ {[%clk 0:01:57]}  Kxd8 {[%clk 0:01:53]} 23. gxh6 {[%clk 0:01:56]}  Rxh6 {[%clk 0:01:47]} 24. Rxh6 {[%clk 0:01:47]}  Bxh6 {[%clk 0:01:46]} 25. Nxe5 {[%clk 0:01:48]}  Qf6 {[%clk 0:01:28]} 26. Qa8+ {[%clk 0:01:40]}  Ke7 {[%clk 0:01:25]} 27. Qb7+ {[%clk 0:01:39]}  Ke6 {[%clk 0:01:19]} 28. Qd7# {[%clk 0:01:39]} 1-0


[Site "https://www.chess.com"]

[Event "Titled Tuesday Blitz May 10 Early 2022"]
[White "Golizadeh, Asghar"]
[Black "Pourkashiyan, Atousa"]
[WhiteFideId "12505269"]
[BlackFideId "12502014"]
[WhiteElo "2403"]
[BlackElo "2247"]
[Result "1-0"]
[Round "03"]
[TimeControl "180+1"]
[Date "2022.05.11"]
[WhiteClock "0:01:16"]
[BlackClock "0:00:22"]

1. e4 {[%clk 0:03:00]}  e5 {[%clk 0:02:59]} 2. Nf3 {[%clk 0:02:59]}  Nf6 {[%clk 0:02:59]} 3. Nxe5 {[%clk 0:02:57]}  d6 {[%clk 0:02:59]} 4. Nf3 {[%clk 0:02:58]}  Nxe4 {[%clk 0:02:59]} 5. Nc3 {[%clk 0:02:58]}  Nxc3 {[%clk 0:02:59]} 6. dxc3 {[%clk 0:02:59]}  Be7 {[%clk 0:02:59]} 7. Be3 {[%clk 0:02:59]}  Nc6 {[%clk 0:02:55]} 8. Qd2 {[%clk 0:03:00]}  Be6 {[%clk 0:02:55]} 9. O-O-O {[%clk 0:02:59]}  Qd7 {[%clk 0:02:56]} 10. Kb1 {[%clk 0:02:58]}  a6 {[%clk 0:02:56]} 11. Bd3 {[%clk 0:02:54]}  O-O-O {[%clk 0:02:55]} 12. Nd4 {[%clk 0:02:51]}  Nxd4 {[%clk 0:02:54]} 13. Bxd4 {[%clk 0:02:51]}  f6 {[%clk 0:02:51]} 14. Rhe1 {[%clk 0:02:50]}  Rde8 {[%clk 0:02:40]} 15. Qe2 {[%clk 0:02:44]}  Bd8 {[%clk 0:02:31]} 16. Qd2 {[%clk 0:02:33]}  Bf5 {[%clk 0:02:16]} 17. Be2 {[%clk 0:02:27]}  Be4 {[%clk 0:02:14]} 18. Bf1 {[%clk 0:02:18]}  Kb8 {[%clk 0:01:47]} 19. Be3 {[%clk 0:02:14]}  Qf5 {[%clk 0:01:04]} 20. f3 {[%clk 0:02:06]}  Bc6 {[%clk 0:01:03]} 21. Qd4 {[%clk 0:02:06]}  Re5 {[%clk 0:00:23]} 22. Bd3 {[%clk 0:01:36]}  Qe6 {[%clk 0:00:22]} 23. f4 {[%clk 0:01:32]}  Ra5 {[%clk 0:00:21]} 24. Bc4 {[%clk 0:01:23]}  Qe4 {[%clk 0:00:21]} 25. Qa7+ {[%clk 0:01:18]}  Kc8 {[%clk 0:00:22]} 26. Bd4 {[%clk 0:01:16]} 1-0


[Site "https://www.chess.com"]

[Event "Titled Tuesday Blitz May 10 Early 2022"]
[White "Golubev, Mikhail"]
[Black "Hoffmann, Asa"]
[WhiteFideId "14100983"]
[BlackFideId "2001470"]
[WhiteElo "2374"]
[BlackElo "2117"]
[Result "0-1"]
[Round "03"]
[TimeControl "180+1"]
[Date "2022.05.11"]
[WhiteClock "0:00:11"]
[BlackClock "0:00:21"]

1. e4 {[%clk 0:03:00]}  d6 {[%clk 0:02:59]} 2. d4 {[%clk 0:02:59]}  Nf6 {[%clk 0:02:55]} 3. Nc3 {[%clk 0:02:59]}  c6 {[%clk 0:02:55]} 4. f4 {[%clk 0:02:58]}  Qa5 {[%clk 0:02:54]} 5. Bd3 {[%clk 0:02:58]}  e5 {[%clk 0:02:54]} 6. Nf3 {[%clk 0:02:57]}  exd4 {[%clk 0:02:53]} 7. Nxd4 {[%clk 0:02:54]}  Qb6 {[%clk 0:02:53]} 8. Nf3 {[%clk 0:02:41]}  Be7 {[%clk 0:02:47]} 9. Qe2 {[%clk 0:02:36]}  O-O {[%clk 0:02:46]} 10. h3 {[%clk 0:02:33]}  Nh5 {[%clk 0:02:45]} 11. Qf2 {[%clk 0:02:33]}  Qxf2+ {[%clk 0:02:30]} 12. Kxf2 {[%clk 0:02:32]}  Nd7 {[%clk 0:02:13]} 13. g4 {[%clk 0:02:27]}  Nhf6 {[%clk 0:02:12]} 14. g5 {[%clk 0:02:19]}  Ne8 {[%clk 0:02:11]} 15. h4 {[%clk 0:02:14]}  Nc7 {[%clk 0:02:10]} 16. h5 {[%clk 0:02:10]}  b5 {[%clk 0:02:10]} 17. Be3 {[%clk 0:02:09]}  b4 {[%clk 0:02:05]} 18. Ne2 {[%clk 0:02:08]}  d5 {[%clk 0:02:05]} 19. Ng3 {[%clk 0:02:01]}  c5 {[%clk 0:02:03]} 20. Nf5 {[%clk 0:01:59]}  Re8 {[%clk 0:02:01]} 21. exd5 {[%clk 0:01:35]}  Nxd5 {[%clk 0:02:00]} 22. Be4 {[%clk 0:01:35]}  Nxe3 {[%clk 0:01:54]} 23. Nxe7+ {[%clk 0:01:35]}  Rxe7 {[%clk 0:01:53]} 24. Bxa8 {[%clk 0:01:35]}  Nxc2 {[%clk 0:01:47]} 25. Rac1 {[%clk 0:01:33]}  Ne3 {[%clk 0:01:35]} 26. Rhe1 {[%clk 0:01:27]}  Ng4+ {[%clk 0:01:34]} 27. Kg1 {[%clk 0:01:22]}  Rxe1+ {[%clk 0:01:21]} 28. Rxe1 {[%clk 0:01:20]}  Kf8 {[%clk 0:01:21]} 29. Bc6 {[%clk 0:01:15]}  f6 {[%clk 0:01:09]} 30. Rc1 {[%clk 0:01:00]}  Nb6 {[%clk 0:00:54]} 31. Rxc5 {[%clk 0:00:58]}  Be6 {[%clk 0:00:54]} 32. b3 {[%clk 0:00:54]}  Ke7 {[%clk 0:00:53]} 33. Nd4 {[%clk 0:00:46]}  Bf7 {[%clk 0:00:42]} 34. Ra5 {[%clk 0:00:41]}  Nc8 {[%clk 0:00:38]} 35. Nf5+ {[%clk 0:00:38]}  Kd8 {[%clk 0:00:36]} 36. h6 {[%clk 0:00:27]}  gxh6 {[%clk 0:00:33]} 37. gxh6 {[%clk 0:00:28]}  Bg6 {[%clk 0:00:31]} 38. Rd5+ {[%clk 0:00:24]}  Kc7 {[%clk 0:00:31]} 39. Bd7 {[%clk 0:00:24]}  Nb6 {[%clk 0:00:30]} 40. Nd4 {[%clk 0:00:15]}  Nxd5 {[%clk 0:00:27]} 41. Bxg4 {[%clk 0:00:14]}  Nxf4 {[%clk 0:00:27]} 42. Bf5 {[%clk 0:00:13]}  Kd6 {[%clk 0:00:25]} 43. Bxg6 {[%clk 0:00:12]}  Nxg6 {[%clk 0:00:24]} 44. Kf2 {[%clk 0:00:12]}  a6 {[%clk 0:00:22]} 45. Ke3 {[%clk 0:00:12]}  Kd5 {[%clk 0:00:23]} 46. Nf5 {[%clk 0:00:11]}  Ke5 {[%clk 0:00:22]} 47. Ne7 {[%clk 0:00:11]}  Nxe7 {[%clk 0:00:21]} 0-1


[Site "https://www.chess.com"]

[Event "Titled Tuesday Blitz May 10 Early 2022"]
[White "Hakobyan, Aram"]
[Black "Padmini, Rout"]
[WhiteFideId "13306677"]
[BlackFideId "5029295"]
[WhiteElo "2557"]
[BlackElo "2181"]
[Result "1-0"]
[Round "03"]
[TimeControl "180+1"]
[Date "2022.05.11"]
[WhiteClock "0:02:41"]
[BlackClock "0:01:38"]

1. d4 {[%clk 0:03:00]}  Nf6 {[%clk 0:02:53]} 2. c4 {[%clk 0:03:01]}  g6 {[%clk 0:02:49]} 3. Nc3 {[%clk 0:03:00]}  d5 {[%clk 0:02:48]} 4. Nf3 {[%clk 0:03:00]}  Bg7 {[%clk 0:02:48]} 5. h4 {[%clk 0:03:01]}  c6 {[%clk 0:02:33]} 6. cxd5 {[%clk 0:03:01]}  cxd5 {[%clk 0:02:33]} 7. Bf4 {[%clk 0:03:02]}  a6 {[%clk 0:02:30]} 8. e3 {[%clk 0:03:02]}  Nc6 {[%clk 0:02:30]} 9. Qb3 {[%clk 0:03:02]}  Na5 {[%clk 0:02:27]} 10. Qb4 {[%clk 0:03:03]}  Nc6 {[%clk 0:02:26]} 11. Qb3 {[%clk 0:03:03]}  Na5 {[%clk 0:02:26]} 12. Qa3 {[%clk 0:03:04]}  O-O {[%clk 0:01:55]} 13. Rc1 {[%clk 0:03:03]}  Bf5 {[%clk 0:01:51]} 14. Be2 {[%clk 0:02:59]}  b5 {[%clk 0:01:50]} 15. Ne5 {[%clk 0:02:59]}  Nc4 {[%clk 0:01:49]} 16. Bxc4 {[%clk 0:02:58]}  bxc4 {[%clk 0:01:46]} 17. Nc6 {[%clk 0:02:59]}  Qd7 {[%clk 0:01:44]} 18. Nxe7+ {[%clk 0:03:00]}  Kh8 {[%clk 0:01:44]} 19. h5 {[%clk 0:02:43]}  Bd3 {[%clk 0:01:38]} 20. h6 {[%clk 0:02:41]} 1-0


[Site "https://www.chess.com"]

[Event "Titled Tuesday Blitz May 10 Early 2022"]
[White "Harshavardhan G B"]
[Black "Zlatin, Alexander"]
[WhiteFideId "25059009"]
[BlackFideId "2810549"]
[WhiteElo "1831"]
[BlackElo "2228"]
[Result "1-0"]
[Round "03"]
[TimeControl "180+1"]
[Date "2022.05.11"]
[WhiteClock "0:01:26"]
[BlackClock "0:00:11"]

1. e4 {[%clk 0:03:00]}  e5 {[%clk 0:02:43]} 2. Nc3 {[%clk 0:02:58]}  Nf6 {[%clk 0:02:41]} 3. Bc4 {[%clk 0:02:57]}  Nc6 {[%clk 0:02:40]} 4. d3 {[%clk 0:02:56]}  Bc5 {[%clk 0:02:39]} 5. f4 {[%clk 0:02:54]}  d6 {[%clk 0:02:39]} 6. f5 {[%clk 0:02:54]}  Na5 {[%clk 0:02:34]} 7. a3 {[%clk 0:02:50]}  Nxc4 {[%clk 0:02:34]} 8. dxc4 {[%clk 0:02:50]}  c6 {[%clk 0:02:30]} 9. Qd3 {[%clk 0:02:49]}  O-O {[%clk 0:02:26]} 10. Bg5 {[%clk 0:02:47]}  Bf2+ {[%clk 0:02:18]} 11. Ke2 {[%clk 0:02:40]}  Bd4 {[%clk 0:02:13]} 12. Nf3 {[%clk 0:02:39]}  h6 {[%clk 0:02:01]} 13. Bh4 {[%clk 0:02:23]}  Bb6 {[%clk 0:01:26]} 14. Rad1 {[%clk 0:02:16]}  Bc7 {[%clk 0:01:12]} 15. g4 {[%clk 0:02:14]}  a6 {[%clk 0:01:00]} 16. Rhg1 {[%clk 0:02:05]}  b5 {[%clk 0:00:46]} 17. b3 {[%clk 0:02:00]}  Bb7 {[%clk 0:00:42]} 18. g5 {[%clk 0:02:00]}  Nh5 {[%clk 0:00:40]} 19. gxh6 {[%clk 0:01:48]}  Nf4+ {[%clk 0:00:36]} 20. Kf1 {[%clk 0:01:45]}  f6 {[%clk 0:00:17]} 21. Rxg7+ {[%clk 0:01:44]}  Kh8 {[%clk 0:00:17]} 22. Qe3 {[%clk 0:01:42]}  Bb6 {[%clk 0:00:17]} 23. Qd2 {[%clk 0:01:31]}  Rg8 {[%clk 0:00:15]} 24. Rxg8+ {[%clk 0:01:31]}  Qxg8 {[%clk 0:00:14]} 25. Bxf6+ {[%clk 0:01:31]}  Kh7 {[%clk 0:00:14]} 26. Bg7 {[%clk 0:01:32]}  Qf7 {[%clk 0:00:12]} 27. Ng5+ {[%clk 0:01:31]}  Kg8 {[%clk 0:00:11]} 28. Nxf7 {[%clk 0:01:31]}  Kxf7 {[%clk 0:00:10]} 29. Qxd6 {[%clk 0:01:31]}  Rd8 {[%clk 0:00:11]} 30. Qf6+ {[%clk 0:01:26]} 1-0


[Site "https://www.chess.com"]

[Event "Titled Tuesday Blitz May 10 Early 2022"]
[White "Ianov, Viktor"]
[Black "Jumabayev, Rinat"]
[WhiteFideId "14102730"]
[BlackFideId "13702661"]
[WhiteElo "2152"]
[BlackElo "2561"]
[Result "0-1"]
[Round "03"]
[TimeControl "180+1"]
[Date "2022.05.11"]
[WhiteClock "0:00:33"]
[BlackClock "0:00:11"]

1. Nf3 {[%clk 0:03:00]}  Nf6 {[%clk 0:02:59]} 2. g3 {[%clk 0:03:00]}  b6 {[%clk 0:02:57]} 3. Bg2 {[%clk 0:03:00]}  Bb7 {[%clk 0:02:57]} 4. c4 {[%clk 0:03:00]}  c5 {[%clk 0:02:56]} 5. Nc3 {[%clk 0:03:00]}  g6 {[%clk 0:02:52]} 6. O-O {[%clk 0:03:00]}  Bg7 {[%clk 0:02:52]} 7. d4 {[%clk 0:03:00]}  Ne4 {[%clk 0:02:36]} 8. Nxe4 {[%clk 0:02:59]}  Bxe4 {[%clk 0:02:37]} 9. Be3 {[%clk 0:02:59]}  Nc6 {[%clk 0:02:27]} 10. dxc5 {[%clk 0:02:53]}  Bxb2 {[%clk 0:02:13]} 11. cxb6 {[%clk 0:02:52]}  axb6 {[%clk 0:02:14]} 12. Qb3 {[%clk 0:02:49]}  Bxa1 {[%clk 0:02:04]} 13. Rxa1 {[%clk 0:02:48]}  O-O {[%clk 0:02:04]} 14. Bxb6 {[%clk 0:02:44]}  Qb8 {[%clk 0:02:02]} 15. c5 {[%clk 0:02:41]}  d5 {[%clk 0:01:55]} 16. a4 {[%clk 0:02:33]}  Qb7 {[%clk 0:01:44]} 17. h4 {[%clk 0:02:20]}  h5 {[%clk 0:01:33]} 18. Qe3 {[%clk 0:02:19]}  e5 {[%clk 0:01:30]} 19. a5 {[%clk 0:02:15]}  f6 {[%clk 0:01:20]} 20. Bh3 {[%clk 0:02:12]}  Kg7 {[%clk 0:01:20]} 21. Nd2 {[%clk 0:02:10]}  Nd4 {[%clk 0:01:20]} 22. Nxe4 {[%clk 0:01:58]}  dxe4 {[%clk 0:01:19]} 23. Rc1 {[%clk 0:01:46]}  Qd5 {[%clk 0:01:17]} 24. Kf1 {[%clk 0:01:39]}  f5 {[%clk 0:01:13]} 25. Rd1 {[%clk 0:01:29]}  Rfc8 {[%clk 0:01:02]} 26. Bg2 {[%clk 0:01:28]}  Rxc5 {[%clk 0:00:50]} 27. Bxc5 {[%clk 0:01:23]}  Qxc5 {[%clk 0:00:51]} 28. Qg5 {[%clk 0:01:15]}  Rxa5 {[%clk 0:00:45]} 29. Rb1 {[%clk 0:01:14]}  Ra7 {[%clk 0:00:34]} 30. Qd8 {[%clk 0:01:12]}  Qb5 {[%clk 0:00:20]} 31. Re1 {[%clk 0:01:05]}  Nxe2 {[%clk 0:00:20]} 32. Qd2 {[%clk 0:00:46]}  Nf4+ {[%clk 0:00:13]} 33. Kg1 {[%clk 0:00:46]}  Nd3 {[%clk 0:00:13]} 34. Rd1 {[%clk 0:00:45]}  Qc5 {[%clk 0:00:11]} 35. Bf1 {[%clk 0:00:44]}  Rd7 {[%clk 0:00:11]} 36. Bxd3 {[%clk 0:00:43]}  Rxd3 {[%clk 0:00:11]} 37. Qe1 {[%clk 0:00:43]}  Qd4 {[%clk 0:00:10]} 38. Rc1 {[%clk 0:00:41]}  e3 {[%clk 0:00:08]} 39. fxe3 {[%clk 0:00:40]}  Rxe3 {[%clk 0:00:08]} 40. Qf2 {[%clk 0:00:40]}  Rxg3+ {[%clk 0:00:08]} 41. Kf1 {[%clk 0:00:36]}  Qd3+ {[%clk 0:00:09]} 42. Ke1 {[%clk 0:00:35]}  Re3+ {[%clk 0:00:09]} 43. Qxe3 {[%clk 0:00:34]}  Qxe3+ {[%clk 0:00:10]} 44. Kd1 {[%clk 0:00:33]}  Qxc1+ {[%clk 0:00:10]} 45. Kxc1 {[%clk 0:00:33]}  g5 {[%clk 0:00:11]} 0-1


[Site "https://www.chess.com"]

[Event "Titled Tuesday Blitz May 10 Early 2022"]
[White "Juhasz, Agoston"]
[Black "Bodnar, Nikolay"]
[WhiteFideId "778346"]
[BlackFideId "14106469"]
[WhiteElo "2211"]
[BlackElo "2296"]
[Result "1-0"]
[Round "03"]
[TimeControl "180+1"]
[Date "2022.05.11"]
[WhiteClock "0:00:25"]
[BlackClock "0:00:50"]

1. d4 {[%clk 0:02:58]}  d5 {[%clk 0:02:59]} 2. Nf3 {[%clk 0:02:55]}  Nf6 {[%clk 0:02:59]} 3. c4 {[%clk 0:02:56]}  e6 {[%clk 0:02:59]} 4. Nc3 {[%clk 0:02:55]}  c6 {[%clk 0:02:58]} 5. e3 {[%clk 0:02:54]}  Nbd7 {[%clk 0:02:58]} 6. Be2 {[%clk 0:02:54]}  Bd6 {[%clk 0:02:56]} 7. O-O {[%clk 0:02:54]}  O-O {[%clk 0:02:57]} 8. b3 {[%clk 0:02:54]}  b6 {[%clk 0:02:55]} 9. Bb2 {[%clk 0:02:53]}  Bb7 {[%clk 0:02:55]} 10. Rc1 {[%clk 0:02:46]}  Rc8 {[%clk 0:02:55]} 11. Qd3 {[%clk 0:02:42]}  c5 {[%clk 0:02:54]} 12. cxd5 {[%clk 0:02:39]}  exd5 {[%clk 0:02:53]} 13. Rfd1 {[%clk 0:02:34]}  Bb8 {[%clk 0:02:44]} 14. dxc5 {[%clk 0:02:23]}  bxc5 {[%clk 0:02:43]} 15. Na4 {[%clk 0:02:11]}  Ne4 {[%clk 0:02:31]} 16. g3 {[%clk 0:01:41]}  Re8 {[%clk 0:02:25]} 17. Bf1 {[%clk 0:01:41]}  Nb6 {[%clk 0:02:19]} 18. Nxb6 {[%clk 0:01:38]}  axb6 {[%clk 0:02:19]} 19. Nd2 {[%clk 0:01:27]}  f5 {[%clk 0:02:13]} 20. Bh3 {[%clk 0:01:18]}  Qg5 {[%clk 0:01:48]} 21. Nxe4 {[%clk 0:01:07]}  fxe4 {[%clk 0:01:47]} 22. Qb5 {[%clk 0:01:02]}  Bc7 {[%clk 0:01:22]} 23. Bxc8 {[%clk 0:00:58]}  Rxc8 {[%clk 0:01:23]} 24. Qd7 {[%clk 0:00:53]}  h5 {[%clk 0:01:04]} 25. h4 {[%clk 0:00:43]}  Qg6 {[%clk 0:01:03]} 26. Rxd5 {[%clk 0:00:42]}  Bxd5 {[%clk 0:01:00]} 27. Qxc8+ {[%clk 0:00:37]}  Kh7 {[%clk 0:01:00]} 28. Qxc7 {[%clk 0:00:36]}  Be6 {[%clk 0:00:55]} 29. Rd1 {[%clk 0:00:32]}  Bh3 {[%clk 0:00:50]} 30. Rd6 {[%clk 0:00:26]}  Qg4 {[%clk 0:00:50]} 31. Qxg7+ {[%clk 0:00:24]}  Qxg7 {[%clk 0:00:49]} 32. Bxg7 {[%clk 0:00:24]}  Kxg7 {[%clk 0:00:50]} 33. Rxb6 {[%clk 0:00:25]} 1-0


[Site "https://www.chess.com"]